bitfinex-derivatives/quotes_BTCF0:USTF0_20251125
["timestamp","ask_amount","ask_price","bid_price","bid_amount"]
[1764110149848,0.2457026,87205.0,87204.0,0.19116]
[1764110150441,0.2457026,87205.0,87204.0,0.19216]
[1764110153454,0.2497619,87210.0,87209.0,0.19116]
[1764110153650,0.2497619,87210.0,87209.0,0.57818903]
[1764110160349,0.23829,87210.0,87209.0,0.58966103]
[1764110160549,0.23829,87210.0,87209.0,0.57818903]
[1764110161046,0.02897196,87210.0,87209.0,0.57818903]
[1764110161246,0.10599196,87210.0,87209.0,0.57818903]
[1764110162357,0.10599196,87210.0,87209.0,0.38702903]
[1764110162554,0.10699196,87210.0,87209.0,0.38702903]
[1764110164461,0.10599196,87210.0,87209.0,0.38702903]
[1764110164656,0.10699196,87210.0,87209.0,0.38702903]
[1764110165258,0.10799196,87210.0,87209.0,0.38702903]
[1764110165965,0.10699196,87210.0,87209.0,0.38702903]
[1764110166265,0.10799196,87210.0,87209.0,0.38702903]
[1764110167457,0.10699196,87210.0,87209.0,0.38702903]
[1764110167769,0.10799196,87210.0,87209.0,0.38702903]
[1764110167972,0.10699196,87210.0,87209.0,0.38702903]
[1764110168170,0.10799196,87210.0,87209.0,0.38702903]
[1764110168575,0.10699196,87210.0,87209.0,0.38702903]
[1764110168765,0.10799196,87210.0,87209.0,0.38702903]
[1764110169167,0.10799196,87210.0,87209.0,0.46629903]
[1764110169672,0.10799196,87210.0,87209.0,0.38702903]
[1764110171387,0.10599196,87210.0,87209.0,0.38702903]
[1764110171575,0.10799196,87210.0,87209.0,0.38702903]
[1764110171975,0.10699196,87210.0,87209.0,0.38702903]
[1764110172284,0.10799196,87210.0,87209.0,0.38702903]
[1764110172585,0.002,87210.0,87209.0,0.54197903]
[1764110172777,0.002,87210.0,87209.0,0.6245889]
[1764110172977,0.08124,87210.0,87209.0,0.54197903]
[1764110173180,0.002,87210.0,87209.0,0.54197903]
[1764110173771,0.08124,87210.0,87209.0,0.54197903]
[1764110174172,0.15709,87210.0,87209.0,0.54197903]
[1764110176278,0.08024,87210.0,87209.0,0.54197903]
[1764110176780,0.1685619,87210.0,87209.0,0.15495]
[1764110177888,0.1685619,87210.0,87209.0,0.54197903]
[1764110180788,0.001,87210.0,87209.0,0.54197903]
[1764110181083,0.15709,87210.0,87209.0,0.54197903]
[1764110187893,0.001,87210.0,87209.0,0.54197903]
[1764110188396,0.3608,87220.0,87219.0,0.1567]
[1764110188896,0.18092,87221.0,87220.0,0.2197106]
[1764110189093,0.07924,87221.0,87220.0,0.2197106]
[1764110189400,0.51689,87231.0,87230.0,0.20824]
[1764110189797,0.69781,87231.0,87230.0,0.59526903]
[1764110190893,0.69881,87231.0,87230.0,0.59526903]
[1764110191996,0.41481097,87239.0,87238.0,0.1681682]
[1764110192195,0.15609,87252.0,87251.0,0.1567]
[1764110192386,0.33701,87252.0,87251.0,0.1567]
[1764110193391,0.18092,87252.0,87251.0,0.1567]
[1764110193590,0.18192,87252.0,87251.0,0.1567]
[1764110193997,0.18292,87252.0,87251.0,0.1567]
[1764110194198,0.002,87252.0,87251.0,0.16833232]
[1764110194497,0.08124,87252.0,87251.0,0.16833232]
[1764110195291,0.002,87252.0,87251.0,0.16833232]
[1764110195492,0.15809,87252.0,87251.0,0.16833232]
[1764110196497,0.08124,87252.0,87251.0,0.16833232]
[1764110197295,0.002,87252.0,87251.0,0.16833232]
[1764110198695,0.08124,87252.0,87251.0,0.16833232]
[1764110198898,0.002,87252.0,87251.0,0.16833232]
[1764110199098,0.26012,87263.0,87262.0,0.1567]
[1764110199402,0.07924,87263.0,87262.0,0.5175]
[1764110199699,0.15609,87263.0,87262.0,0.5175]
[1764110200196,0.15609,87275.0,87274.0,0.1567]
[1764110200594,0.33693,87275.0,87274.0,0.1567]
[1764110200994,0.15609,87275.0,87274.0,0.1567]
[1764110201193,0.3608,87277.0,87275.0,0.16446]
[1764110201397,0.16947274,87276.0,87275.0,0.1759234]
[1764110201598,0.00835274,87276.0,87275.0,0.1759234]
[1764110202289,0.00935274,87276.0,87275.0,0.1759234]
[1764110202495,2.74e-06,87276.0,87275.0,0.1759234]
[1764110202699,2.74e-06,87276.0,87275.0,0.5367234]
[1764110202895,0.18084,87293.0,87284.0,0.0114621]
[1764110203206,0.34196,87293.0,87292.0,0.16446]
[1764110205401,0.18184,87293.0,87292.0,0.16446]
[1764110205602,0.001,87293.0,87292.0,0.52526]
[1764110208302,0.16212,87293.0,87292.0,0.52526]
[1764110209701,0.16212,87293.0,87280.0,0.00017193]
[1764110209702,0.16112,87281.0,87280.0,0.00017193]
[1764110211201,0.16112,87281.0,87280.0,0.00217193]
[1764110211602,0.16112,87281.0,87280.0,0.00017193]
[1764110211906,0.16212,87281.0,87280.0,0.00017193]
[1764110213206,0.001,87281.0,87280.0,0.25707021]
[1764110213509,0.37226,87301.0,87280.0,0.25707021]
[1764110213510,0.172581,87293.0,87292.0,0.16446]
[1764110213705,0.1725822,87284.0,87283.0,0.21861]
[1764110213910,0.1725822,87284.0,87283.0,0.16446]
[1764110214909,0.1725822,87284.0,87283.0,0.16546]
[1764110217210,0.1725822,87284.0,87283.0,0.16446]
[1764110217406,0.1735822,87284.0,87283.0,0.16446]
[1764110217612,0.16212,87284.0,87283.0,0.16446]
[1764110218114,0.07905,87284.0,87283.0,0.21861]
[1764110218316,0.001,87284.0,87283.0,0.21861]
[1764110219516,0.16112,87284.0,87283.0,0.21861]
[1764110219906,0.16112,87284.0,87283.0,0.21961]
[1764110222815,0.16112,87284.0,87283.0,0.21861]
[1764110224908,0.15985,87284.0,87283.0,0.21861]
[1764110225506,0.15985,87284.0,87283.0,0.16446]
[1764110229616,0.16302,87281.0,87280.0,0.09274734]
[1764110229918,0.52382,87281.0,87280.0,0.00017193]
[1764110230819,0.52382,87281.0,87280.0,0.00117193]
[1764110232217,0.52482,87281.0,87280.0,0.00017193]
[1764110232916,0.52382,87281.0,87280.0,0.00017193]
[1764110233120,0.52482,87281.0,87280.0,0.00017193]
[1764110233621,0.52482,87281.0,87258.0,0.05076]
[1764110233622,0.1689949,87263.0,87262.0,0.52416]
[1764110234319,0.349874,87270.0,87269.0,0.16336]
[1764110235316,0.33841,87270.0,87269.0,0.16336]
[1764110236219,0.26052,87270.0,87269.0,0.16336]
[1764110236424,0.18088,87270.0,87269.0,0.16336]
[1764110236919,0.26052,87270.0,87269.0,0.16336]
[1764110237224,0.26052,87270.0,87269.0,0.16436]
[1764110238015,0.18088,87270.0,87269.0,0.16436]
[1764110238217,0.18088,87270.0,87269.0,0.52516]
[1764110238416,0.26052,87270.0,87269.0,0.52516]
[1764110239124,0.00017126,87278.0,87269.0,0.52516]
[1764110239125,0.15770126,87278.0,87277.0,0.16336]
[1764110240324,0.15870126,87278.0,87277.0,0.16336]
[1764110240727,0.15870126,87278.0,87277.0,0.52416]
[1764110241118,0.00117126,87278.0,87277.0,0.52416]
[1764110242918,0.00017126,87278.0,87277.0,0.52416]
[1764110243319,0.00017126,87278.0,87277.0,0.52616]
[1764110244224,0.00017126,87278.0,87277.0,0.60863844]
[1764110244413,0.00017126,87278.0,87277.0,0.52616]
[1764110245929,1.26e-06,87278.0,87277.0,0.52616]
[1764110246318,1.26e-06,87278.0,87277.0,0.3628]
[1764110247721,1.26e-06,87278.0,87277.0,0.4659452]
[1764110248621,1.26e-06,87278.0,87277.0,0.3628]
[1764110250723,0.28285,87304.0,87303.0,0.16336]
[1764110250918,0.2943096,87304.0,87303.0,0.16336]
[1764110251320,0.0114596,87304.0,87303.0,0.16336]
[1764110251522,0.1689873,87321.0,87320.0,0.16336]
[1764110251723,0.168988,87316.0,87315.0,0.16336]
[1764110252025,0.15753,87316.0,87315.0,0.21171]
[1764110252228,0.15753,87313.0,87312.0,0.00017183]
[1764110252427,0.15753,87313.0,87312.0,0.16353183]
[1764110252630,0.15753,87313.0,87312.0,0.21188183]
[1764110254334,0.15753,87313.0,87312.0,0.57268183]
[1764110254929,0.15853,87313.0,87312.0,0.57268183]
[1764110255630,0.08064,87313.0,87312.0,0.57268183]
[1764110255830,0.15853,87313.0,87312.0,0.57268183]
[1764110256026,0.001,87313.0,87312.0,0.57268183]
[1764110256530,0.00082806,87313.0,87312.0,0.57268183]
[1764110256723,0.07964,87348.0,87347.0,0.16336]
[1764110256923,0.15753,87348.0,87347.0,0.16336]
[1764110257728,0.07964,87348.0,87347.0,0.52416]
[1764110257927,0.0114524,87359.0,87347.0,0.3608]
[1764110258129,0.1689824,87359.0,87358.0,0.16336]
[1764110258330,0.15753,87359.0,87358.0,0.16336]
[1764110259034,0.15753,87348.0,87347.0,0.52416]
[1764110259233,0.44044,87364.0,87363.0,0.16336]
[1764110259436,0.15753,87364.0,87363.0,0.16336]
[1764110259737,0.1689807,87372.0,87371.0,0.16336]
[1764110260225,0.00329962,87372.0,87371.0,0.16336]
[1764110260426,0.03555962,87372.0,87371.0,0.16336]
[1764110260628,0.04701032,87372.0,87371.0,0.16336]
[1764110261441,0.04801032,87372.0,87371.0,0.16336]
[1764110261643,0.0635112,87368.0,87367.0,0.20686]
[1764110262738,0.05206,87368.0,87367.0,0.20686]
[1764110262929,0.05306,87368.0,87367.0,0.20686]
[1764110265536,0.001,87368.0,87367.0,0.20686]
[1764110267138,0.02703,87368.0,87367.0,0.20686]
[1764110267338,0.02703,87368.0,87363.0,0.00017173]
[1764110267339,0.0635117,87364.0,87363.0,0.00017173]
[1764110267542,0.4243117,87364.0,87363.0,0.00017173]
[1764110268844,0.4243117,87364.0,87363.0,0.15868173]
[1764110269243,0.4243117,87364.0,87363.0,0.00017173]
[1764110269645,0.4253117,87364.0,87363.0,0.00017173]
[1764110269949,0.4253117,87364.0,87363.0,0.07752173]
[1764110270244,0.4253117,87364.0,87343.0,0.3725442]
[1764110270245,0.05206,87347.0,87346.0,0.1257]
[1764110270440,0.0635148,87340.0,87339.0,0.20685]
[1764110271746,0.4243148,87340.0,87339.0,0.20685]
[1764110271933,0.4243148,87340.0,87339.0,0.20785]
[1764110272339,0.4243148,87340.0,87339.0,0.001]
[1764110278044,0.0635159,87332.0,87331.0,0.00017173]
[1764110278250,0.4243159,87332.0,87331.0,0.00017173]
[1764110278945,0.0635176,87319.0,87318.0,0.20685]
[1764110280646,0.0615176,87319.0,87318.0,0.20685]
[1764110280853,0.00017173,87327.0,87326.0,0.1576067]
[1764110281043,1.73e-06,87327.0,87326.0,0.14615]
[1764110282242,1.73e-06,87327.0,87326.0,0.14815]
[1764110283649,0.54172,87344.0,87343.0,0.14615]
[1764110283846,0.18092,87344.0,87343.0,0.14615]
[1764110284455,0.18092,87344.0,87343.0,0.50695]
[1764110284847,0.18292,87344.0,87343.0,0.50695]
[1764110285546,0.002,87344.0,87343.0,0.50695]
[1764110285746,0.001,87344.0,87343.0,0.50695]
[1764110287053,0.0114538,87349.0,87348.0,0.14615]
[1764110287257,0.0001714,87352.0,87351.0,0.14615]
[1764110295763,0.0278514,87352.0,87351.0,0.14615]
[1764110296961,0.0140114,87352.0,87351.0,0.14615]
[1764110297661,0.0278514,87352.0,87351.0,0.14615]
[1764110298755,0.0001714,87352.0,87351.0,0.14615]
[1764110300272,0.0278514,87352.0,87351.0,0.14615]
[1764110300565,0.0140114,87352.0,87351.0,0.14615]
[1764110300761,0.0001714,87352.0,87351.0,0.14615]
[1764110302362,5.254e-05,87352.0,87351.0,0.14615]
[1764110303669,0.0114524,87359.0,87358.0,0.1504]
[1764110304163,0.0392321,87362.0,87360.0,0.04238]
[1764110304359,0.1560589,87385.0,87384.0,0.1504]
[1764110306764,0.3389389,87385.0,87384.0,0.1504]
[1764110307270,0.3419389,87385.0,87384.0,0.1504]
[1764110310063,0.1610589,87385.0,87384.0,0.1504]
[1764110311271,0.13356951,87385.0,87384.0,0.1504]
[1764110311463,0.31440951,87385.0,87384.0,0.18563]
[1764110313573,0.30296061,87385.0,87384.0,0.18563]
[1764110317069,0.30296061,87385.0,87384.0,0.1504]
[1764110318972,0.34330061,87385.0,87384.0,0.1504]
[1764110319472,0.34330061,87385.0,87381.0,0.5112]
[1764110319473,0.1560593,87382.0,87381.0,0.5112]
[1764110319769,0.15606,87377.0,87376.0,0.15057173]
[1764110319964,0.15606,87377.0,87376.0,0.07450173]
[1764110320166,0.15606,87377.0,87376.0,0.15057173]
[1764110321274,0.15606,87377.0,87376.0,0.00017173]
[1764110321864,0.15706,87377.0,87376.0,0.00017173]
[1764110322272,0.15906,87377.0,87376.0,0.00017173]
[1764110322774,0.15906,87377.0,87376.0,0.14155173]
[1764110323072,0.15906,87377.0,87376.0,0.00017173]
[1764110323672,0.1453617,87364.0,87363.0,0.43186]
[1764110323863,0.1453627,87356.0,87355.0,0.50218]
[1764110326078,0.1463627,87356.0,87355.0,0.50218]
[1764110326978,0.1473627,87356.0,87355.0,0.50218]
[1764110327881,0.1463627,87356.0,87355.0,0.50218]
[1764110328085,0.1473627,87356.0,87355.0,0.50218]
[1764110328475,0.1463627,87356.0,87355.0,0.50218]
[1764110328680,0.13391,87356.0,87355.0,0.50218]
[1764110329374,0.13491,87356.0,87355.0,0.50218]
[1764110329573,0.1074131,87356.0,87355.0,0.50218]
[1764110330276,0.1084131,87356.0,87355.0,0.50218]
[1764110331284,0.1064131,87356.0,87355.0,0.50218]
[1764110331977,0.1074131,87356.0,87355.0,0.50218]
[1764110332978,0.1084131,87356.0,87355.0,0.50218]
[1764110333577,0.1074131,87356.0,87355.0,0.50218]
[1764110333782,0.1084131,87356.0,87355.0,0.50218]
[1764110337483,0.08091621,87356.0,87355.0,0.50218]
[1764110343885,0.3608,87365.0,87355.0,0.50218]
[1764110343886,0.08210756,87413.0,87380.0,0.01217]
[1764110344191,0.12767991,87428.0,87427.0,0.14003]
[1764110344192,0.1942933,87428.0,87427.0,0.14003]
[1764110344387,0.2882933,87428.0,87427.0,0.50083]
[1764110344689,0.52038327,87428.0,87427.0,0.50083]
[1764110345286,0.52038327,87428.0,87427.0,0.43304]
[1764110345585,0.52038327,87428.0,87427.0,0.3608]
[1764110345790,0.52038327,87428.0,87427.0,0.50083]
[1764110346392,0.52238327,87428.0,87427.0,0.50083]
[1764110346786,0.52038327,87428.0,87427.0,0.50083]
[1764110346997,0.52238327,87428.0,87427.0,0.50083]
[1764110348195,0.002,87428.0,87427.0,0.50083]
[1764110349091,0.14269,87446.0,87445.0,0.14003]
[1764110349285,0.25358,87446.0,87445.0,0.86163]
[1764110349490,0.41364997,87446.0,87445.0,0.86163]
[1764110349890,0.23208997,87446.0,87445.0,0.86163]
[1764110350090,0.41364997,87446.0,87445.0,0.86163]
[1764110350295,0.38152997,87446.0,87445.0,0.86163]
[1764110350597,0.24653097,87446.0,87445.0,0.86163]
[1764110350793,0.23508997,87446.0,87445.0,0.86163]
[1764110350993,0.24653097,87446.0,87445.0,0.86163]
[1764110351288,0.003,87446.0,87445.0,0.86163]
[1764110352887,0.01967189,87453.0,87452.0,0.1373]
[1764110353196,0.01967189,87453.0,87452.0,0.4981]
[1764110353982,0.02167189,87453.0,87452.0,0.4981]
[1764110354291,0.39609186,87453.0,87452.0,0.4981]
[1764110354484,0.153771,87446.0,87445.0,0.4981]
[1764110354792,0.153771,87446.0,87437.0,0.00017163]
[1764110354793,0.14233,87438.0,87437.0,0.00017163]
[1764110355195,0.37441997,87438.0,87437.0,0.00017163]
[1764110355591,0.0114416,87441.0,87437.0,0.00017163]
[1764110355982,0.0815516,87441.0,87437.0,0.00017163]
[1764110356190,0.0114416,87441.0,87437.0,0.00017163]
[1764110357098,0.38586187,87439.0,87437.0,0.00017163]
[1764110357299,0.1537719,87439.0,87437.0,0.00017163]
[1764110357592,0.23208997,87438.0,87437.0,0.00017163]
[1764110358590,0.37441997,87438.0,87437.0,0.00017163]
[1764110360090,0.3606845,87438.0,87437.0,0.00017163]
[1764110361495,0.14233,87421.0,87420.0,0.00999999]
[1764110361696,0.14233,87419.0,87418.0,0.3608]
[1764110361994,0.3606845,87419.0,87418.0,0.3608]
[1764110362294,0.05206,87402.0,87401.0,0.3608]
[1764110362504,0.12217,87402.0,87401.0,0.3608]
[1764110362692,0.05206,87402.0,87401.0,0.3608]
[1764110363493,0.19439,87402.0,87401.0,0.3608]
[1764110363695,0.4127445,87402.0,87401.0,0.3608]
[1764110364292,0.4127445,87402.0,87401.0,0.3618]
[1764110364697,0.4127445,87402.0,87401.0,0.001]
[1764110369699,0.31047895,87402.0,87401.0,0.001]
[1764110370098,0.29673725,87402.0,87401.0,0.001]
[1764110371297,0.29673725,87402.0,87401.0,0.07285]
[1764110371498,0.29673725,87402.0,87401.0,0.001]
[1764110371699,0.34879725,87402.0,87401.0,0.001]
[1764110374105,0.1537778,87394.0,87393.0,0.00017153]
[1764110374407,0.3721323,87394.0,87393.0,0.00017153]
[1764110375197,0.1537784,87389.0,87388.0,0.00011852]
[1764110375408,0.5514529,87389.0,87388.0,0.00011852]
[1764110376413,0.5514529,87389.0,87388.0,0.00311852]
[1764110377207,0.2058395,87381.0,87380.0,0.00017163]
[1764110377408,0.424194,87381.0,87380.0,0.00017163]
[1764110377610,0.424194,87381.0,87361.0,0.3608]
[1764110377611,0.153782,87362.0,87361.0,0.4981]
[1764110377802,0.335102,87362.0,87361.0,0.4981]
[1764110378003,0.5534565,87362.0,87361.0,0.50966763]
[1764110378813,0.5534565,87362.0,87361.0,0.51166763]
[1764110380105,0.53971011,87362.0,87361.0,0.51166763]
[1764110381206,0.2183545,87362.0,87361.0,0.51166763]
[1764110381814,0.2298065,87362.0,87361.0,0.51166763]
[1764110382017,0.2183545,87362.0,87361.0,0.51166763]
[1764110382216,0.00017163,87370.0,87369.0,0.1778]
[1764110382405,0.0114481,87392.0,87388.0,0.22783]
[1764110382610,0.0114483,87390.0,87388.0,0.58863]
[1764110382804,0.00047302,87389.0,87388.0,0.58863]
[1764110383014,0.00047302,87389.0,87388.0,0.5386]
[1764110383409,0.14076,87397.0,87396.0,0.1778]
[1764110383410,0.00017163,87397.0,87396.0,0.1778]
[1764110383616,0.62532,87424.0,87423.0,0.1778]
[1764110383916,0.3608,87424.0,87423.0,0.1778]
[1764110384114,0.07511,87432.0,87425.0,0.1778]
[1764110384317,0.18148,87434.0,87425.0,0.1778]
[1764110384508,0.1930938,87434.0,87425.0,0.1778]
[1764110384705,0.36903189,87453.0,87425.0,0.1778]
[1764110384706,0.00823189,87453.0,87452.0,0.1778]
[1764110384910,0.00823189,87453.0,87452.0,0.5386]
[1764110387318,0.01523189,87453.0,87452.0,0.5386]
[1764110387819,0.20464189,87453.0,87452.0,0.5386]
[1764110388923,0.20464189,87453.0,87452.0,0.1778]
[1764110389115,0.0114411,87445.0,87444.0,0.00017152]
[1764110389416,0.01523189,87453.0,87452.0,0.1778]
[1764110389628,0.01523189,87453.0,87452.0,0.5386]
[1764110389923,0.01322253,87453.0,87452.0,0.5386]
[1764110390123,0.01093027,87466.0,87465.0,0.1778]
[1764110390311,0.01093027,87466.0,87465.0,0.5386]
[1764110391125,0.3608,87485.0,87469.0,0.08691]
[1764110391126,0.0114379,87470.0,87469.0,0.08691]
[1764110391327,0.3608,87497.0,87496.0,0.1778]
[1764110393318,0.0114331,87506.0,87505.0,0.1778]
[1764110393623,0.3608,87512.0,87511.0,0.1778]
[1764110394315,0.37105,87522.0,87521.0,0.1778]
[1764110394721,0.18941,87520.0,87519.0,0.3608]
[1764110394922,0.3608,87537.0,87536.0,0.1778]
[1764110395224,0.3608,87560.0,87559.0,0.1778]
[1764110396121,0.3269244,87560.0,87559.0,0.19160935]
[1764110396323,0.3608,87570.0,87569.0,0.1778]
[1764110396621,0.3608,87570.0,87569.0,0.19160935]
[1764110396924,0.3608,87579.0,87569.0,0.19160935]
[1764110396925,0.3608,87579.0,87578.0,0.1778]
[1764110397116,0.5616336,87579.0,87578.0,0.01380935]
[1764110397425,0.5616336,87579.0,87570.0,0.0101713]
[1764110397426,0.2008346,87571.0,87570.0,0.00017131]
[1764110398323,0.5616346,87571.0,87570.0,0.00017131]
[1764110398624,0.0114266,87556.0,87555.0,0.1778]
[1764110398825,0.0114266,87556.0,87555.0,0.5386]
[1764110399027,0.011426,87561.0,87560.0,0.08691]
[1764110399328,0.2008366,87556.0,87555.0,0.08691]
[1764110399525,0.2008372,87551.0,87550.0,0.08691]
[1764110400226,0.12534,87548.0,87547.0,0.00017131]
[1764110400417,0.24276,87533.0,87532.0,0.3608]
[1764110400614,0.3608,87577.0,87566.0,0.12321]
[1764110400818,0.0114244,87573.0,87566.0,0.24744]
[1764110401019,0.3608,87577.0,87576.0,0.24744]
[1764110401318,0.3608,87590.0,87589.0,0.24744]
[1764110401629,0.26911579,87620.0,87597.0,0.24744]
[1764110401630,0.00017131,87598.0,87597.0,0.24744]
[1764110401928,0.0114184,87620.0,87610.0,0.00999999]
[1764110402229,0.0001712,87624.0,87619.0,0.12321]
[1764110402428,0.0115889,87624.0,87619.0,0.12321]
[1764110402622,0.0001712,87624.0,87623.0,0.24744]
[1764110403030,0.0001712,87624.0,87623.0,0.60824]
[1764110406125,0.00599356,87633.0,87632.0,0.24744]
[1764110406625,0.12341356,87633.0,87632.0,0.12321]
[1764110406831,0.11742,87632.0,87631.0,0.3608]
[1764110407022,0.24276,87632.0,87631.0,0.3608]
[1764110408124,0.24276,87632.0,87623.0,0.3608]
[1764110408125,0.24276,87624.0,87623.0,0.3608]
[1764110408630,0.24276,87624.0,87590.0,0.19375579]
[1764110408631,0.254179,87614.0,87606.0,0.3608]
[1764110409135,0.07536,87598.0,87590.0,0.3608]
[1764110409434,0.24276,87592.0,87591.0,0.01428724]
[1764110411532,0.22904782,87592.0,87591.0,0.01428724]
[1764110412129,0.24086,87590.0,87589.0,2.4e-06]
[1764110412327,0.3155,87584.0,87583.0,0.0001712]
[1764110412728,0.3269229,87584.0,87583.0,0.0001712]
[1764110412929,0.2522841,87575.0,87566.0,0.3608]
[1764110413127,0.2522841,87575.0,87570.0,0.00999999]
[1764110414336,0.3155,87570.0,87569.0,0.3608]
[1764110416039,0.30178582,87570.0,87569.0,0.3608]
[1764110420139,0.16515138,87570.0,87569.0,0.3608]
[1764110421429,0.15143708,87570.0,87569.0,0.3608]
[1764110421634,0.15243708,87570.0,87569.0,0.3608]
[1764110422446,0.16386188,87570.0,87569.0,0.3608]
[1764110422635,0.16386188,87570.0,87566.0,0.0001712]
[1764110422636,0.2522851,87567.0,87566.0,0.0001712]
[1764110422841,0.2522865,87557.0,87556.0,0.3608]
[1764110423144,0.2522885,87541.0,87540.0,0.24785]
[1764110423337,0.24086,87538.0,87537.0,0.36093016]
[1764110424146,0.3608,87563.0,87551.0,0.0114271]
[1764110424336,0.3608,87563.0,87562.0,0.24785]
[1764110424938,0.1342645,87572.0,87571.0,0.12377]
[1764110425333,0.5406,87580.0,87579.0,0.24785]
[1764110425334,0.12301131,87580.0,87579.0,0.24785]
[1764110425539,0.3608,87621.0,87609.0,0.24785]
[1764110425841,0.3722182,87621.0,87610.0,0.00999999]
[1764110426142,0.3608,87621.0,87610.0,0.00999999]
[1764110426340,0.3608,87621.0,87620.0,0.24785]
[1764110426741,0.0114176,87625.0,87620.0,0.24785]
[1764110427048,0.0114176,87625.0,87624.0,0.12377]
[1764110427238,0.0114176,87625.0,87624.0,0.24785]
[1764110427949,0.0124176,87625.0,87624.0,0.24785]
[1764110428546,0.001,87625.0,87620.0,0.08526999]
[1764110428756,0.001,87625.0,87624.0,0.24785]
[1764110430159,0.00017119,87629.0,87628.0,0.24785]
[1764110431762,0.00117119,87629.0,87628.0,0.24785]
[1764110433152,0.01258829,87629.0,87628.0,0.24785]
[1764110434551,0.01158829,87629.0,87628.0,0.24785]
[1764110435849,0.1342577,87624.0,87623.0,0.48457]
[1764110436053,0.2522777,87624.0,87623.0,0.60865]
[1764110436448,0.0114177,87624.0,87623.0,0.60865]
[1764110436849,0.25244829,87629.0,87628.0,0.24785]
[1764110437557,0.13442829,87629.0,87628.0,0.24785]
[1764110437758,0.01158829,87629.0,87628.0,0.24785]
[1764110438561,0.25244829,87629.0,87628.0,0.24785]
[1764110440657,0.25344829,87629.0,87628.0,0.24785]
[1764110442667,0.13542829,87629.0,87628.0,0.24785]
[1764110443068,0.01258829,87629.0,87628.0,0.24785]
[1764110443762,0.01258829,87629.0,87623.0,0.3608]
[1764110443763,0.2436277,87624.0,87623.0,0.3608]
[1764110443970,0.2436288,87616.0,87615.0,0.3608]
[1764110444268,0.2436288,87616.0,87615.0,0.59988]
[1764110444869,0.2436288,87616.0,87615.0,0.3608]
[1764110445261,0.2436288,87616.0,87615.0,0.3618]
[1764110445465,0.6044288,87616.0,87615.0,0.001]
[1764110445766,0.6044288,87616.0,87612.0,0.00017119]
[1764110445767,0.2436291,87613.0,87612.0,0.00017119]
[1764110445967,0.4251891,87613.0,87612.0,0.00017119]
[1764110446362,0.2436314,87596.0,87595.0,0.59988]
[1764110446569,0.0114227,87586.0,87585.0,0.59988]
[1764110447362,0.2436327,87586.0,87585.0,0.3608]
[1764110447562,0.2426337,87578.0,87577.0,0.00017119]
[1764110448958,0.2426337,87578.0,87577.0,0.23925119]
[1764110449164,0.2426337,87578.0,87577.0,0.24125119]
[1764110449958,0.2426337,87578.0,87577.0,0.00217119]
[1764110451167,0.2426337,87578.0,87567.0,0.3608]
[1764110451168,0.23221,87568.0,87567.0,0.3608]
[1764110451369,0.243635,87568.0,87567.0,0.3608]
[1764110451568,0.2436359,87561.0,87560.0,0.13407999]
[1764110451769,0.2436359,87561.0,87560.0,0.12408]
[1764110453171,0.30246,87560.0,87559.0,0.3608]
[1764110453373,0.30246,87560.0,87559.0,0.35125727]
[1764110453572,0.18122,87553.0,87552.0,0.0001713]
[1764110453769,0.374247,87553.0,87552.0,0.0001713]
[1764110454172,0.18122,87539.0,87536.0,0.3608]
[1764110454472,0.1926489,87538.0,87536.0,0.3608]
[1764110454674,0.18122,87537.0,87536.0,0.3608]
[1764110455073,0.1926517,87517.0,87516.0,0.4298]
[1764110455369,0.1906517,87517.0,87516.0,0.4298]
[1764110455575,0.19073644,87517.0,87516.0,0.4298]
[1764110455771,0.19073644,87517.0,87516.0,0.069]
[1764110456371,0.19073644,87517.0,87508.0,0.2392514]
[1764110456372,0.0114327,87509.0,87508.0,0.2392514]
[1764110456575,0.1020427,87509.0,87508.0,0.2392514]
[1764110456773,0.18122,87509.0,87508.0,0.0001714]
[1764110456972,0.18122,87509.0,87508.0,0.2392514]
[1764110457173,0.18122,87509.0,87508.0,0.0001714]
[1764110458476,0.18222,87509.0,87508.0,0.0001714]
[1764110461278,0.188474,87499.0,87498.0,0.3608]
[1764110461579,0.1884746,87495.0,87487.0,0.3608]
[1764110461779,0.0999555,87488.0,87487.0,0.58753]
[1764110461967,0.1884755,87488.0,87487.0,0.58753]
[1764110462172,0.188476,87484.0,87478.0,0.3608]
[1764110462374,0.1884765,87480.0,87479.0,0.00011594]
[1764110462575,0.37019703,87480.0,87479.0,0.00011594]
[1764110463075,0.17704,87478.0,87468.0,0.069]
[1764110463271,0.0114386,87464.0,87458.0,0.3608]
[1764110463473,0.08852,87459.0,87458.0,0.47468]
[1764110463673,0.17704,87459.0,87458.0,0.47468]
[1764110463874,0.17704,87459.0,87458.0,0.3608]
[1764110464072,0.17604,87459.0,87458.0,0.3608]
[1764110464278,0.17612036,87459.0,87458.0,0.3608]
[1764110464476,0.17504,87451.0,87450.0,0.06765]
[1764110464677,0.17504,87451.0,87440.0,0.00999999]
[1764110464877,0.0114404,87450.0,87439.0,0.43986866]
[1764110465183,0.0114403,87452.0,87439.0,0.42845]
[1764110465473,0.3608,87453.0,87439.0,0.65518]
[1764110465673,0.08752,87440.0,87439.0,0.65518]
[1764110466277,0.17504,87440.0,87439.0,0.65518]
[1764110467280,0.00017151,87448.0,87447.0,0.22673]
[1764110467485,0.00017151,87448.0,87447.0,0.58753]
[1764110467885,0.00017151,87448.0,87447.0,0.22673]
[1764110468479,0.00117151,87448.0,87447.0,0.22673]
[1764110469490,0.03381028,87457.0,87456.0,0.29438]
[1764110469989,0.20885028,87457.0,87456.0,0.29438]
[1764110470190,0.12133028,87457.0,87456.0,0.29438]
[1764110470691,0.12433028,87457.0,87456.0,0.29438]
[1764110471086,0.0989603,87451.0,87450.0,0.11388]
[1764110471389,0.1827,87449.0,87448.0,0.00017151]
[1764110472383,0.1847,87449.0,87448.0,1e-08]
[1764110472592,0.0114427,87433.0,87432.0,0.18287]
[1764110472785,0.372361,87433.0,87432.0,0.18287]
[1764110472992,0.463711,87433.0,87432.0,0.29286]
[1764110473194,0.555061,87433.0,87432.0,0.29286]
[1764110474887,0.1027941,87422.0,87421.0,0.22521]
[1764110475794,0.1941441,87422.0,87421.0,0.22521]
[1764110475982,0.1941441,87422.0,87421.0,0.22621]